[Event "Early-Titled-Tuesday-Blitz-September-26-2023"]
[Site "Chess.com"]
[Date "2023.09.26"]
[Round "5"]
[White "Boxerandchessplayer"]
[Black "vladgoncharov"]
[Result "1/2-1/2"]
[WhiteElo "2183"]
[BlackElo "2521"]
[TimeControl "180+1"]
[EndTime "9:00:19 PDT"]
[Termination "Game drawn - insufficient material"]

1. d4 {[%clk 0:02:57]} 1... Nf6 {[%clk 0:02:58.3]} 2. Nf3 {[%clk 0:02:56.4]}
2... e6 {[%clk 0:02:56.5]} 3. Nbd2 {[%clk 0:02:55.6]} 3... d5 {[%clk 0:02:55.9]}
4. c4 {[%clk 0:02:56]} 4... c5 {[%clk 0:02:36.8]} 5. g3 {[%clk 0:02:53.4]} 5...
Nc6 {[%clk 0:02:33.1]} 6. Bg2 {[%clk 0:02:53.8]} 6... cxd4 {[%clk 0:02:30.7]} 7.
cxd5 {[%clk 0:02:26.7]} 7... Qxd5 {[%clk 0:02:26.4]} 8. O-O {[%clk 0:02:24.1]}
8... Qd8 {[%clk 0:02:22.3]} 9. Nb3 {[%clk 0:02:02.2]} 9... e5 {[%clk 0:02:21.9]}
10. Bg5 {[%clk 0:02:02.9]} 10... Be7 {[%clk 0:02:20.3]} 11. Nfd2 {[%clk
0:02:01.8]} 11... O-O {[%clk 0:02:15.1]} 12. Rc1 {[%clk 0:02:02.3]} 12... Bd7
{[%clk 0:01:47.6]} 13. Nc4 {[%clk 0:01:41.5]} 13... h6 {[%clk 0:01:26.2]} 14.
Bxf6 {[%clk 0:01:28.4]} 14... Bxf6 {[%clk 0:01:25.9]} 15. Nc5 {[%clk 0:01:29.1]}
15... Bc8 {[%clk 0:01:23]} 16. Qb3 {[%clk 0:01:21.7]} 16... Qe7 {[%clk
0:01:21.1]} 17. Ne4 {[%clk 0:01:06.4]} 17... Rd8 {[%clk 0:01:19.7]} 18. Nxf6+
{[%clk 0:00:59.4]} 18... Qxf6 {[%clk 0:01:17.9]} 19. Nd2 {[%clk 0:00:58.5]}
19... Qd6 {[%clk 0:01:02.5]} 20. Nc4 {[%clk 0:00:34.7]} 20... Qe7 {[%clk
0:00:57.9]} 21. Bxc6 {[%clk 0:00:26.2]} 21... bxc6 {[%clk 0:00:55.7]} 22. Na5
{[%clk 0:00:24.8]} 22... Be6 {[%clk 0:00:43.3]} 23. Nxc6 {[%clk 0:00:24.1]}
23... Qd6 {[%clk 0:00:36]} 24. Qb4 {[%clk 0:00:12.3]} 24... Qxb4 {[%clk
0:00:34.6]} 25. Nxb4 {[%clk 0:00:13.2]} 25... a5 {[%clk 0:00:29.4]} 26. Nc6
{[%clk 0:00:12.4]} 26... Re8 {[%clk 0:00:29.2]} 27. a3 {[%clk 0:00:06.1]} 27...
Ra6 {[%clk 0:00:24.5]} 28. Rc5 {[%clk 0:00:05.5]} 28... f6 {[%clk 0:00:18.1]}
29. Rfc1 {[%clk 0:00:04.8]} 29... a4 {[%clk 0:00:17]} 30. Nb4 {[%clk 0:00:05]}
30... Rb6 {[%clk 0:00:16.4]} 31. Rc6 {[%clk 0:00:04.6]} 31... Rxc6 {[%clk
0:00:15.4]} 32. Rxc6 {[%clk 0:00:05]} 32... Bb3 {[%clk 0:00:16.1]} 33. Kf1
{[%clk 0:00:03.5]} 33... Rd8 {[%clk 0:00:15.8]} 34. Ke1 {[%clk 0:00:03]} 34...
e4 {[%clk 0:00:16.1]} 35. Kd2 {[%clk 0:00:02.5]} 35... e3+ {[%clk 0:00:15]} 36.
fxe3 {[%clk 0:00:02.3]} 36... dxe3+ {[%clk 0:00:15.3]} 37. Kxe3 {[%clk 0:00:03]}
37... Rd1 {[%clk 0:00:15.3]} 38. Kf2 {[%clk 0:00:03.3]} 38... Rb1 {[%clk
0:00:14.5]} 39. Rc8+ {[%clk 0:00:04]} 39... Kf7 {[%clk 0:00:14]} 40. Nd3 {[%clk
0:00:04.6]} 40... g5 {[%clk 0:00:11.9]} 41. Rc7+ {[%clk 0:00:05]} 41... Kg6
{[%clk 0:00:11.5]} 42. Rc3 {[%clk 0:00:05.3]} 42... h5 {[%clk 0:00:11.1]} 43. h3
{[%clk 0:00:04.5]} 43... Rh1 {[%clk 0:00:09.7]} 44. Kg2 {[%clk 0:00:04.6]} 44...
Bd5+ {[%clk 0:00:09.2]} 45. Kf2 {[%clk 0:00:04.7]} 45... Rxh3 {[%clk 0:00:09.2]}
46. Rc5 {[%clk 0:00:04.8]} 46... Ba8 {[%clk 0:00:07.5]} 47. Ra5 {[%clk
0:00:04.5]} 47... Bc6 {[%clk 0:00:06.4]} 48. Ra6 {[%clk 0:00:03.8]} 48... Be4
{[%clk 0:00:06.3]} 49. Rxa4 {[%clk 0:00:03.2]} 49... Bxd3 {[%clk 0:00:06.4]} 50.
exd3 {[%clk 0:00:03.2]} 50... Rh2+ {[%clk 0:00:07.1]} 51. Kf3 {[%clk 0:00:03.1]}
51... Rxb2 {[%clk 0:00:07.7]} 52. Ra8 {[%clk 0:00:03.1]} 52... Rb3 {[%clk
0:00:08]} 53. Ke3 {[%clk 0:00:02.1]} 53... h4 {[%clk 0:00:05.3]} 54. gxh4 {[%clk
0:00:02]} 54... gxh4 {[%clk 0:00:05.7]} 55. Rh8 {[%clk 0:00:02.4]} 55... Kg5
{[%clk 0:00:04.8]} 56. Rg8+ {[%clk 0:00:01.9]} 56... Kf5 {[%clk 0:00:04.9]} 57.
Rh8 {[%clk 0:00:01.7]} 57... Kg4 {[%clk 0:00:05.2]} 58. Rg8+ {[%clk 0:00:01.6]}
58... Kh5 {[%clk 0:00:04.8]} 59. Rh8+ {[%clk 0:00:01.3]} 59... Kg5 {[%clk
0:00:05.2]} 60. Rg8+ {[%clk 0:00:01.6]} 60... Kf5 {[%clk 0:00:05.6]} 61. Rh8
{[%clk 0:00:01.3]} 61... Rxa3 {[%clk 0:00:05.8]} 62. Rxh4 {[%clk 0:00:01.3]}
62... Ke5 {[%clk 0:00:06.3]} 63. Re4+ {[%clk 0:00:01.9]} 63... Kd5 {[%clk
0:00:06.4]} 64. Rd4+ {[%clk 0:00:02.6]} 64... Ke5 {[%clk 0:00:06.5]} 65. Re4+
{[%clk 0:00:03]} 65... Kf5 {[%clk 0:00:07.3]} 66. Rf4+ {[%clk 0:00:03.1]} 66...
Kg5 {[%clk 0:00:07.9]} 67. Rf2 {[%clk 0:00:03.1]} 67... f5 {[%clk 0:00:08.3]}
68. Rg2+ {[%clk 0:00:03.7]} 68... Kf6 {[%clk 0:00:08.8]} 69. Rb2 {[%clk
0:00:04]} 69... Ra4 {[%clk 0:00:07.8]} 70. Rb6+ {[%clk 0:00:04]} 70... Kg5
{[%clk 0:00:07.8]} 71. Rb8 {[%clk 0:00:04.5]} 71... f4+ {[%clk 0:00:07.6]} 72.
Kf3 {[%clk 0:00:04.6]} 72... Rd4 {[%clk 0:00:07.6]} 73. Rb5+ {[%clk 0:00:04.2]}
73... Kh4 {[%clk 0:00:07.2]} 74. Rf5 {[%clk 0:00:02.9]} 74... Rxd3+ {[%clk
0:00:07.1]} 75. Kxf4 {[%clk 0:00:03.4]} 75... Rd1 {[%clk 0:00:07.4]} 76. Ke4
{[%clk 0:00:03]} 76... Re1+ {[%clk 0:00:07.6]} 77. Kf4 {[%clk 0:00:02.7]} 77...
Rf1+ {[%clk 0:00:07.8]} 78. Ke4 {[%clk 0:00:02.7]} 78... Rxf5 {[%clk 0:00:08.5]}
79. Kxf5 {[%clk 0:00:03.4]} 1/2-1/2

[Event "Early-Titled-Tuesday-Blitz-September-26-2023"]
[Site "Chess.com"]
[Date "2023.09.26"]
[Round "6"]
[White "bazar-wokzal"]
[Black "remi04"]
[Result "1/2-1/2"]
[WhiteElo "2672"]
[BlackElo "2828"]
[TimeControl "180+1"]
[EndTime "9:03:41 PDT"]
[Termination "Game drawn by agreement"]

1. e4 {[%clk 0:03:00.9]} 1... c5 {[%clk 0:03:00.3]} 2. c3 {[%clk 0:03:00.6]}
2... d5 {[%clk 0:02:59.2]} 3. exd5 {[%clk 0:03:00.8]} 3... Qxd5 {[%clk
0:02:59.9]} 4. d4 {[%clk 0:03:01.4]} 4... Nf6 {[%clk 0:03:00.2]} 5. Nf3 {[%clk
0:03:01.2]} 5... e6 {[%clk 0:03:00.8]} 6. a3 {[%clk 0:03:01]} 6... cxd4 {[%clk
0:02:58.4]} 7. cxd4 {[%clk 0:03:01.1]} 7... Nc6 {[%clk 0:02:58.8]} 8. Nc3 {[%clk
0:03:01.1]} 8... Qd8 {[%clk 0:02:59.2]} 9. Be3 {[%clk 0:03:01.5]} 9... Be7
{[%clk 0:02:56.5]} 10. Qc2 {[%clk 0:03:02]} 10... O-O {[%clk 0:02:56]} 11. Bd3
{[%clk 0:03:02.6]} 11... Bd7 {[%clk 0:02:51.6]} 12. O-O {[%clk 0:03:02.2]} 12...
Rc8 {[%clk 0:02:51.1]} 13. Rad1 {[%clk 0:03:01.8]} 13... h6 {[%clk 0:02:49.1]}
14. Qd2 {[%clk 0:03:01.4]} 14... Nd5 {[%clk 0:02:43.9]} 15. Bxh6 {[%clk
0:02:41.9]} 15... Nxc3 {[%clk 0:02:29.8]} 16. bxc3 {[%clk 0:02:37.1]} 16... gxh6
{[%clk 0:02:26.4]} 17. Qxh6 {[%clk 0:02:36.2]} 17... f5 {[%clk 0:02:26.4]} 18.
Qg6+ {[%clk 0:01:57]} 1/2-1/2

[Event "Early-Titled-Tuesday-Blitz-September-26-2023"]
[Site "Chess.com"]
[Date "2023.09.26"]
[Round "6"]
[White "Aariow"]
[Black "Rainbow2014"]
[Result "1-0"]
[WhiteElo "2632"]
[BlackElo "2372"]
[TimeControl "180+1"]
[EndTime "9:03:54 PDT"]
[Termination "Aariow won by resignation"]

1. d4 {[%clk 0:03:00.9]} 1... Nf6 {[%clk 0:02:49]} 2. c4 {[%clk 0:03:00.2]} 2...
e6 {[%clk 0:02:43.5]} 3. Nc3 {[%clk 0:03:00.2]} 3... Bb4 {[%clk 0:02:40.2]} 4.
Qc2 {[%clk 0:03:00.1]} 4... O-O {[%clk 0:02:39.8]} 5. e4 {[%clk 0:02:58.2]} 5...
d5 {[%clk 0:02:40]} 6. e5 {[%clk 0:02:58.3]} 6... Ne4 {[%clk 0:02:40.6]} 7. Bd3
{[%clk 0:02:58.3]} 7... c5 {[%clk 0:02:41.1]} 8. Nf3 {[%clk 0:02:59]} 8... cxd4
{[%clk 0:02:40.8]} 9. Nxd4 {[%clk 0:02:59.9]} 9... Nd7 {[%clk 0:02:40.5]} 10.
Bf4 {[%clk 0:03:00.7]} 10... Qh4 {[%clk 0:02:37.7]} 11. g3 {[%clk 0:03:00.9]}
11... Qh5 {[%clk 0:02:23.4]} 12. O-O {[%clk 0:03:00.8]} 12... Bxc3 {[%clk
0:02:16.8]} 13. bxc3 {[%clk 0:03:00.6]} 13... g5 {[%clk 0:02:06.5]} 14. cxd5
{[%clk 0:02:59.3]} 14... exd5 {[%clk 0:02:07.4]} 15. g4 {[%clk 0:02:57.8]} 15...
Qxg4+ {[%clk 0:02:04.1]} 16. Bg3 {[%clk 0:02:58.1]} 16... Nxg3 {[%clk
0:01:58.6]} 17. fxg3 {[%clk 0:02:57.5]} 17... Nxe5 {[%clk 0:01:56.4]} 18. Bxh7+
{[%clk 0:02:57.2]} 18... Kg7 {[%clk 0:01:55.3]} 19. Rae1 {[%clk 0:02:58.1]}
19... f6 {[%clk 0:01:50.4]} 20. Rxe5 {[%clk 0:02:57.4]} 1-0

[Event "Early-Titled-Tuesday-Blitz-September-26-2023"]
[Site "Chess.com"]
[Date "2023.09.26"]
[Round "6"]
[White "Yuruultei"]
[Black "Kotofeyca"]
[Result "0-1"]
[WhiteElo "2271"]
[BlackElo "2384"]
[TimeControl "180+1"]
[EndTime "9:04:20 PDT"]
[Termination "Kotofeyca won by resignation"]

1. d4 {[%clk 0:01:29.3]} 1... d5 {[%clk 0:02:59]} 2. c4 {[%clk 0:01:29.6]} 2...
c6 {[%clk 0:02:59.9]} 3. Nf3 {[%clk 0:01:29.8]} 3... Nf6 {[%clk 0:02:59.7]} 4.
Nc3 {[%clk 0:01:30.3]} 4... dxc4 {[%clk 0:02:59.6]} 5. e4 {[%clk 0:01:29.7]}
5... b5 {[%clk 0:02:59.3]} 6. e5 {[%clk 0:01:26.8]} 6... Nd5 {[%clk 0:02:59.5]}
7. Ne4 {[%clk 0:01:27.7]} 7... Bf5 {[%clk 0:02:55.1]} 8. Ng3 {[%clk 0:01:25.4]}
8... Bg4 {[%clk 0:02:53.9]} 9. a4 {[%clk 0:01:26.3]} 9... e6 {[%clk 0:02:43.7]}
10. b3 {[%clk 0:01:07.6]} 10... Bb4+ {[%clk 0:02:33.9]} 11. Bd2 {[%clk
0:00:55.6]} 11... c3 {[%clk 0:02:33.8]} 0-1

[Event "Early-Titled-Tuesday-Blitz-September-26-2023"]
[Site "Chess.com"]
[Date "2023.09.26"]
[Round "6"]
[White "CarlosjPineror"]
[Black "TomLiu777"]
[Result "1-0"]
[WhiteElo "2565"]
[BlackElo "2353"]
[TimeControl "180+1"]
[EndTime "9:04:23 PDT"]
[Termination "CarlosjPineror won by resignation"]

1. e4 {[%clk 0:02:57]} 1... d6 {[%clk 0:02:55.4]} 2. d4 {[%clk 0:02:56.8]} 2...
Nf6 {[%clk 0:02:54.9]} 3. Nc3 {[%clk 0:02:57]} 3... g6 {[%clk 0:02:55.8]} 4. Be3
{[%clk 0:02:56.6]} 4... Bg7 {[%clk 0:02:56.2]} 5. f3 {[%clk 0:02:57]} 5... Na6
{[%clk 0:02:53.2]} 6. Qd2 {[%clk 0:02:57]} 6... O-O {[%clk 0:02:51.4]} 7. h4
{[%clk 0:02:54.6]} 7... c6 {[%clk 0:02:52.3]} 8. Bh6 {[%clk 0:02:52]} 8... e5
{[%clk 0:02:47.7]} 9. Bxg7 {[%clk 0:02:49.9]} 9... Kxg7 {[%clk 0:02:47.3]} 10.
O-O-O {[%clk 0:02:49.4]} 10... exd4 {[%clk 0:02:43.2]} 11. Qxd4 {[%clk
0:02:48.4]} 11... Be6 {[%clk 0:02:42.1]} 12. h5 {[%clk 0:02:46.6]} 12... c5
{[%clk 0:02:41.5]} 13. h6+ {[%clk 0:02:45.9]} 13... Kg8 {[%clk 0:02:39.4]} 14.
Qf2 {[%clk 0:02:37.9]} 14... Nb4 {[%clk 0:02:37.9]} 15. a3 {[%clk 0:02:36.9]}
15... Nc6 {[%clk 0:02:37.5]} 16. Nge2 {[%clk 0:02:31.8]} 16... b5 {[%clk
0:02:35.7]} 17. Nf4 {[%clk 0:02:31]} 17... b4 {[%clk 0:02:35.1]} 18. axb4 {[%clk
0:02:29.7]} 18... cxb4 {[%clk 0:02:33.5]} 19. Ncd5 {[%clk 0:02:29.3]} 19... Bxd5
{[%clk 0:02:32]} 20. Nxd5 {[%clk 0:02:29.5]} 20... Nxd5 {[%clk 0:02:30.7]} 21.
Rxd5 {[%clk 0:02:29.5]} 21... b3 {[%clk 0:02:28.6]} 22. c3 {[%clk 0:02:25.8]}
22... a5 {[%clk 0:02:27.2]} 23. Bb5 {[%clk 0:02:22.4]} 23... Rc8 {[%clk
0:02:24.1]} 24. Bxc6 {[%clk 0:02:15.9]} 24... Rxc6 {[%clk 0:02:25]} 25. Qd4
{[%clk 0:02:16.3]} 25... f6 {[%clk 0:02:24.8]} 26. Rd1 {[%clk 0:02:16.6]} 26...
Qc7 {[%clk 0:02:18.7]} 27. Rxd6 {[%clk 0:02:14.3]} 27... Rxd6 {[%clk 0:02:18.7]}
28. Qxd6 {[%clk 0:02:15.2]} 28... Qc4 {[%clk 0:02:19.6]} 29. Qe7 {[%clk
0:02:01.1]} 29... Rf7 {[%clk 0:02:17.1]} 30. Rd8+ {[%clk 0:01:59.7]} 1-0

[Event "Early-Titled-Tuesday-Blitz-September-26-2023"]
[Site "Chess.com"]
[Date "2023.09.26"]
[Round "6"]
[White "BogdanDeac"]
[Black "atigerman"]
[Result "1-0"]
[WhiteElo "2966"]
[BlackElo "2717"]
[TimeControl "180+1"]
[EndTime "9:04:42 PDT"]
[Termination "BogdanDeac won by resignation"]

1. b3 {[%clk 0:03:00.9]} 1... Nf6 {[%clk 0:03:00.8]} 2. Bb2 {[%clk 0:02:58.3]}
2... Nc6 {[%clk 0:03:00.8]} 3. Nf3 {[%clk 0:02:58.1]} 3... d6 {[%clk 0:02:59.1]}
4. d4 {[%clk 0:02:58.2]} 4... Bf5 {[%clk 0:02:50.6]} 5. Nh4 {[%clk 0:01:55]}
5... Bd7 {[%clk 0:02:26.3]} 6. d5 {[%clk 0:01:50.9]} 6... Ne5 {[%clk 0:02:23.7]}
7. c4 {[%clk 0:01:48.5]} 7... c6 {[%clk 0:02:16.7]} 8. dxc6 {[%clk 0:01:47.7]}
8... Bxc6 {[%clk 0:02:15.6]} 9. Nc3 {[%clk 0:01:47.9]} 9... g5 {[%clk
0:02:13.7]} 10. Nf5 {[%clk 0:01:36.9]} 10... e6 {[%clk 0:02:11.8]} 11. Nd4
{[%clk 0:01:37.1]} 11... Bg7 {[%clk 0:02:10.6]} 12. Qd2 {[%clk 0:01:18.2]} 12...
Ne4 {[%clk 0:01:59.5]} 13. Nxc6 {[%clk 0:01:17]} 1-0

[Event "Early-Titled-Tuesday-Blitz-September-26-2023"]
[Site "Chess.com"]
[Date "2023.09.26"]
[Round "6"]
[White "jaskol95"]
[Black "Alina_Gumerovna"]
[Result "1-0"]
[WhiteElo "2607"]
[BlackElo "2158"]
[TimeControl "180+1"]
[EndTime "9:04:47 PDT"]
[Termination "jaskol95 won by checkmate"]

1. e4 {[%clk 0:03:00.9]} 1... e6 {[%clk 0:02:59.6]} 2. Nf3 {[%clk 0:03:00.5]}
2... d5 {[%clk 0:02:59.8]} 3. e5 {[%clk 0:03:01.2]} 3... c5 {[%clk 0:02:59.9]}
4. b4 {[%clk 0:03:01.9]} 4... cxb4 {[%clk 0:02:58.8]} 5. a3 {[%clk 0:03:01.6]}
5... Nc6 {[%clk 0:02:56.2]} 6. axb4 {[%clk 0:03:01.6]} 6... Bxb4 {[%clk
0:02:56.2]} 7. c3 {[%clk 0:03:02.1]} 7... Be7 {[%clk 0:02:56.6]} 8. d4 {[%clk
0:03:02.5]} 8... Nh6 {[%clk 0:02:53.8]} 9. Bd3 {[%clk 0:02:57.9]} 9... Nf5
{[%clk 0:02:53]} 10. Na3 {[%clk 0:02:57.9]} 10... a6 {[%clk 0:02:48.4]} 11. Nc2
{[%clk 0:02:58.4]} 11... O-O {[%clk 0:02:44.6]} 12. Ne3 {[%clk 0:02:56.1]} 12...
Nxe3 {[%clk 0:02:43.9]} 13. Bxe3 {[%clk 0:02:56.4]} 13... f6 {[%clk 0:02:43.6]}
14. h4 {[%clk 0:02:24.8]} 14... fxe5 {[%clk 0:02:38.2]} 15. Bxh7+ {[%clk
0:02:16.9]} 15... Kh8 {[%clk 0:02:14.9]} 16. Ng5 {[%clk 0:02:10.2]} 16... Qe8
{[%clk 0:01:52.9]} 17. h5 {[%clk 0:02:02.4]} 17... Bxg5 {[%clk 0:01:42]} 18.
Bxg5 {[%clk 0:02:02.7]} 18... Kxh7 {[%clk 0:01:42.2]} 19. h6 {[%clk 0:01:50.3]}
19... g6 {[%clk 0:01:41.6]} 20. dxe5 {[%clk 0:01:48.5]} 20... Nxe5 {[%clk
0:01:36.2]} 21. Qd4 {[%clk 0:01:48]} 21... Nc6 {[%clk 0:01:35.5]} 22. Qg7#
{[%clk 0:01:47.9]} 1-0

[Event "Early-Titled-Tuesday-Blitz-September-26-2023"]
[Site "Chess.com"]
[Date "2023.09.26"]
[Round "6"]
[White "DuleMudule"]
[Black "Dacean99"]
[Result "1-0"]
[WhiteElo "2777"]
[BlackElo "2560"]
[TimeControl "180+1"]
[EndTime "9:04:52 PDT"]
[Termination "DuleMudule won by resignation"]

1. d4 {[%clk 0:03:00.9]} 1... d5 {[%clk 0:01:15.2]} 2. Bf4 {[%clk 0:02:58.8]}
2... c5 {[%clk 0:01:13]} 3. e3 {[%clk 0:02:58.7]} 3... Nc6 {[%clk 0:01:11.7]} 4.
Nc3 {[%clk 0:02:54.7]} 4... a6 {[%clk 0:01:04.9]} 5. dxc5 {[%clk 0:02:50.8]}
5... e5 {[%clk 0:01:02.3]} 6. Bg3 {[%clk 0:02:50.5]} 6... Nf6 {[%clk 0:01:01.9]}
7. Bh4 {[%clk 0:02:47.9]} 7... d4 {[%clk 0:00:51.6]} 8. exd4 {[%clk 0:02:46.1]}
8... exd4 {[%clk 0:00:50.5]} 9. Qe2+ {[%clk 0:02:45]} 9... Be7 {[%clk
0:00:49.9]} 10. Bxf6 {[%clk 0:02:45.1]} 10... gxf6 {[%clk 0:00:49.9]} 11. Ne4
{[%clk 0:02:44.7]} 11... Qd5 {[%clk 0:00:44.4]} 12. Nxf6+ {[%clk 0:02:42.1]}
12... Kf8 {[%clk 0:00:25]} 13. Nxd5 {[%clk 0:02:43]} 13... Be6 {[%clk 0:00:24]}
1-0

[Event "Early-Titled-Tuesday-Blitz-September-26-2023"]
[Site "Chess.com"]
[Date "2023.09.26"]
[Round "6"]
[White "Yurasova_Daria"]
[Black "Khromkin"]
[Result "0-1"]
[WhiteElo "2480"]
[BlackElo "2368"]
[TimeControl "180+1"]
[EndTime "9:05:14 PDT"]
[Termination "Khromkin won by resignation"]

1. d4 {[%clk 0:03:00.9]} 1... d5 {[%clk 0:02:59.6]} 2. c4 {[%clk 0:03:00.2]}
2... dxc4 {[%clk 0:02:59.5]} 3. Nf3 {[%clk 0:02:58.3]} 3... a6 {[%clk
0:02:59.1]} 4. e3 {[%clk 0:02:57.4]} 4... Bg4 {[%clk 0:02:58.3]} 5. Bxc4 {[%clk
0:02:55.3]} 5... e6 {[%clk 0:02:59]} 6. O-O {[%clk 0:02:54.8]} 6... Nc6 {[%clk
0:02:59.5]} 7. Nbd2 {[%clk 0:02:54.3]} 7... Nf6 {[%clk 0:02:59.4]} 8. Be2 {[%clk
0:02:51.7]} 8... Bd6 {[%clk 0:02:58.9]} 9. h3 {[%clk 0:02:51.3]} 9... Bh5 {[%clk
0:02:58.3]} 10. b3 {[%clk 0:02:51.4]} 10... O-O {[%clk 0:02:55.7]} 11. Bb2
{[%clk 0:02:49.4]} 11... Qe7 {[%clk 0:02:56.2]} 12. Rc1 {[%clk 0:02:49.9]} 12...
Rfd8 {[%clk 0:02:55.2]} 13. Nc4 {[%clk 0:02:48.9]} 13... Ne4 {[%clk 0:02:55.2]}
14. Qc2 {[%clk 0:02:46.7]} 14... f5 {[%clk 0:02:54.8]} 15. Nxd6 {[%clk
0:02:45.2]} 15... cxd6 {[%clk 0:02:54.1]} 16. Rfd1 {[%clk 0:02:33.4]} 16... Nb4
{[%clk 0:02:43.4]} 17. Qc7 {[%clk 0:02:32.1]} 17... Rd7 {[%clk 0:02:43.7]} 18.
Qb6 {[%clk 0:02:29.1]} 18... Nd5 {[%clk 0:02:43.7]} 19. Qa5 {[%clk 0:02:28.5]}
19... f4 {[%clk 0:02:23.9]} 20. exf4 {[%clk 0:02:12.2]} 20... Nxf4 {[%clk
0:02:23.6]} 21. Qe1 {[%clk 0:02:02.1]} 21... Rf8 {[%clk 0:02:08.3]} 22. Bd3
{[%clk 0:01:47.7]} 22... Bxf3 {[%clk 0:02:06.2]} 23. Bxe4 {[%clk 0:01:45.7]}
23... Nxh3+ {[%clk 0:01:35.6]} 24. Kh2 {[%clk 0:01:39.9]} 24... Bxe4 {[%clk
0:01:34.6]} 25. Qxe4 {[%clk 0:01:39]} 25... Nxf2 {[%clk 0:01:33.8]} 26. Qg4
{[%clk 0:01:38.6]} 26... Nxg4+ {[%clk 0:01:33.4]} 0-1

[Event "Early-Titled-Tuesday-Blitz-September-26-2023"]
[Site "Chess.com"]
[Date "2023.09.26"]
[Round "6"]
[White "whiteglovethief"]
[Black "blitzking1729"]
[Result "0-1"]
[WhiteElo "2505"]
[BlackElo "2756"]
[TimeControl "180+1"]
[EndTime "9:05:24 PDT"]
[Termination "blitzking1729 won by checkmate"]

1. d4 {[%clk 0:02:28.3]} 1... g6 {[%clk 0:02:44.4]} 2. Nc3 {[%clk 0:02:26.8]}
2... Bg7 {[%clk 0:02:44]} 3. e4 {[%clk 0:02:27.2]} 3... d6 {[%clk 0:02:44.7]} 4.
Be3 {[%clk 0:02:27.5]} 4... Nf6 {[%clk 0:02:43.8]} 5. f3 {[%clk 0:02:26.2]} 5...
c6 {[%clk 0:02:43.3]} 6. Qd2 {[%clk 0:02:26.3]} 6... b5 {[%clk 0:02:41.1]} 7. h4
{[%clk 0:02:22.9]} 7... h5 {[%clk 0:02:40.7]} 8. O-O-O {[%clk 0:02:21]} 8... Qa5
{[%clk 0:02:39.4]} 9. Kb1 {[%clk 0:02:19.9]} 9... b4 {[%clk 0:02:35.2]} 10. Nce2
{[%clk 0:02:18.1]} 10... Be6 {[%clk 0:02:30.4]} 11. Nc1 {[%clk 0:02:05.2]} 11...
Nbd7 {[%clk 0:02:27.7]} 12. Nge2 {[%clk 0:02:02.4]} 12... Nb6 {[%clk 0:02:26.3]}
13. Nf4 {[%clk 0:02:02]} 13... Bc4 {[%clk 0:02:25]} 14. Nb3 {[%clk 0:01:56.6]}
14... Qb5 {[%clk 0:02:24]} 15. e5 {[%clk 0:01:51.3]} 15... Nfd5 {[%clk
0:02:17.3]} 16. Nxd5 {[%clk 0:01:48.8]} 16... Nxd5 {[%clk 0:02:18.2]} 17. exd6
{[%clk 0:01:45.3]} 17... exd6 {[%clk 0:02:19.1]} 18. Bxc4 {[%clk 0:01:41.9]}
18... Qxc4 {[%clk 0:02:19]} 19. Rhe1 {[%clk 0:01:40.8]} 19... Kd7 {[%clk
0:02:08.6]} 20. Bg1 {[%clk 0:01:30.4]} 20... a5 {[%clk 0:02:05.7]} 21. Bh2
{[%clk 0:01:18.7]} 21... a4 {[%clk 0:02:02.1]} 22. Nc5+ {[%clk 0:01:18.8]} 22...
dxc5 {[%clk 0:01:56.7]} 23. dxc5 {[%clk 0:01:19.7]} 23... Rae8 {[%clk 0:01:50]}
24. b3 {[%clk 0:01:15.7]} 24... axb3 {[%clk 0:01:47.6]} 25. cxb3 {[%clk
0:01:15]} 25... Qc3 {[%clk 0:01:45.2]} 26. Qf4 {[%clk 0:01:13.3]} 26... Qb2#
{[%clk 0:01:43.6]} 0-1

[Event "Early-Titled-Tuesday-Blitz-September-26-2023"]
[Site "Chess.com"]
[Date "2023.09.26"]
[Round "6"]
[White "Kostya0705"]
[Black "infinitegiantkiller"]
[Result "0-1"]
[WhiteElo "2585"]
[BlackElo "2452"]
[TimeControl "180+1"]
[EndTime "9:05:43 PDT"]
[Termination "infinitegiantkiller won by resignation"]

1. e4 {[%clk 0:03:00.9]} 1... c5 {[%clk 0:02:59.4]} 2. Nf3 {[%clk 0:03:00.1]}
2... Nc6 {[%clk 0:02:59.8]} 3. Nc3 {[%clk 0:02:57.6]} 3... g6 {[%clk 0:03:00.3]}
4. d4 {[%clk 0:02:54.5]} 4... cxd4 {[%clk 0:03:01.2]} 5. Nxd4 {[%clk 0:02:54.4]}
5... Bg7 {[%clk 0:03:01.9]} 6. Be3 {[%clk 0:02:54.8]} 6... Nf6 {[%clk
0:03:01.8]} 7. Bc4 {[%clk 0:02:54.7]} 7... d6 {[%clk 0:03:00.9]} 8. Bb3 {[%clk
0:02:45.7]} 8... O-O {[%clk 0:03:00.3]} 9. f3 {[%clk 0:02:45.6]} 9... Bd7 {[%clk
0:02:50.5]} 10. Qd2 {[%clk 0:02:45.1]} 10... Na5 {[%clk 0:02:50.5]} 11. h4
{[%clk 0:02:45.3]} 11... Nxb3 {[%clk 0:02:50.3]} 12. cxb3 {[%clk 0:02:45.2]}
12... h5 {[%clk 0:02:50.3]} 13. O-O-O {[%clk 0:02:44.7]} 13... a6 {[%clk
0:02:48.7]} 14. Kb1 {[%clk 0:02:36.1]} 14... b5 {[%clk 0:02:48.6]} 15. g4 {[%clk
0:02:35.4]} 15... Rc8 {[%clk 0:02:45]} 16. Bh6 {[%clk 0:02:33]} 16... b4 {[%clk
0:02:26.3]} 17. Nd5 {[%clk 0:02:31.7]} 17... Nxd5 {[%clk 0:02:24.4]} 18. exd5
{[%clk 0:02:31.4]} 18... Rc5 {[%clk 0:02:18.4]} 19. Nf5 {[%clk 0:02:22.3]} 19...
Bxf5+ {[%clk 0:02:01.3]} 20. gxf5 {[%clk 0:02:21.2]} 20... Qc8 {[%clk
0:01:55.9]} 21. fxg6 {[%clk 0:02:00]} 21... Qf5+ {[%clk 0:01:51.9]} 22. Ka1
{[%clk 0:01:34.6]} 22... Rc2 {[%clk 0:01:36.3]} 23. Qg5 {[%clk 0:01:19.6]} 23...
Bxb2+ {[%clk 0:01:25]} 24. Kb1 {[%clk 0:01:15.3]} 24... Rc1+ {[%clk 0:01:21.5]}
0-1